[Event "40th Cappelle Open 2024"]
[Site "Cappelle-la-Grande"]
[Date "2024.03.02"]
[Round "1.1"]
[White "Puranik, Abhimanyu"]
[Black "Decrop, Hendrik"]
[Result "1-0"]
[ECO "D02"]
[WhiteElo "2618"]
[BlackElo "2120"]
[Annotator "TA"]
[PlyCount "65"]
[EventDate "2024.03.02"]
[EventType "swiss"]
[EventCountry "FRA"]
[SourceTitle "playchess.com"]
[Source "ChessBase"]
[SourceQuality "1"]
[TimeControl "40/5400+30:1800+30"]

{[%evp 9,65,37,33,18,25,17,31,31,34,35,59,44,41,51,43,39,54,58,77,75,120,58,61,79,214,203,295,106,112,110,110,128,120,110,107,85,85,77,102,97,91,66,77,79,118,79,97,97,94,85,85,82,126,116,133,96,872,856]} 1. Nf3 {[%emt 0:00:04]} d5 {[%emt 0:00:04]} 2. g3 {[%emt 0:00:07]} Nf6 {[%emt 0:00:05]} 3. Bg2 {[%emt 0:00:03]} Nbd7 {[%emt 0:00:07]} 4. d4 {[%emt 0:00:36]} Nb6 {[%emt 0:00:07]} 5. a4 {[%emt 0:00:10]} a5 {[%emt 0:00:06]} 6. Nc3 {[%emt 0:00:41]} Bf5 {[%emt 0:03:21]} 7. Nh4 {[%emt 0:02:09]} e6 {[%emt 0:00:51]} 8. Nxf5 {[%emt 0:00:44] White is slightly better.} exf5 {[%emt 0:00:05]} 9. Qd3 {[%emt 0:01:00]} Ne4 {[%emt 0:00:16]} 10. f3 {[%emt 0:01:38]} Nxc3 {[%emt 0:02:24]} 11. bxc3 {[%emt 0:00:03]} Qd7 {[%emt 0:06:52][%cal Of8e7]} 12. e4 $36 {[%emt 0:00:55][%mdl 2048] White has the initiative.} Be7 {[%emt 0:02:44]} 13. Bh3 {[%emt 0:06:35][%cal Bg2h3,Bh3f5,Bf5e4][%mdl 32]} (13. exf5 Nxa4 14. O-O O-O $17) 13... Qc6 {[%emt 0:04:14]} 14. Bxf5 {[%emt 0:10:34]} (14. exf5 Nxa4 15. O-O O-O $17 (15... Qxc3 16. Rxa4 Qc6 17. f6 $18) (15... Nxc3 16. Re1 $11)) 14... Nxa4 {[%emt 0:01:45]} 15. Bd2 {[%emt 0:16:53]} ({White should try} 15. O-O $16 {exd5 is the strong threat.} Nxc3 16. exd5 Nxd5 17. Re1) 15... Nb2 $14 {[%emt 0:21:53]} 16. Qe2 {[%emt 0:00:06]} dxe4 {[%emt 0:03:20]} (16... O-O $16 {was necessary.}) 17. Bxe4 $18 {[%emt 0:00:49]} Qb6 {[%emt 0:00:04] [#]} (17... Qc4 $142 18. Rb1 (18. Bxb7 Ra7 $18) 18... Qxe2+ 19. Kxe2 Nc4 20. Bxb7 (20. Rxb7 Kd7 $18) 20... Nxd2) 18. O-O $2 {[%emt 0:03:02]} (18. Bc1 $1 $18 {and the rest is easy.}) 18... O-O $16 {[%emt 0:01:34] [#]} 19. Bc1 $1 {[%emt 0:08:03] Threatens to win with Ra2. A strong pair of Bishops.} a4 {[%emt 0:02:17]} 20. Bxb2 {[%emt 0:06:55]} Qxb2 {[%emt 0:00:45]} 21. Qd3 {[%emt 0:03:51]} Qb6 {[%emt 0:14:17]} 22. Bxh7+ {[%emt 0:00:34]} Kh8 {[%emt 0:00:05] Strongly threatening ...g6.} 23. Rfb1 {[%emt 0:00:03]} Qe6 {[%emt 0:04:16]} 24. Bf5 {[%emt 0:02:20]} ({Worse is} 24. Rxb7 f5 (24... g6 $2 25. Rxc7 Kxh7 26. Qe4 $19) 25. Bxf5 (25. d5 $2 Qc8 $19) 25... Qxf5 (25... Rxf5 26. Rxc7 Bf8 27. c4 $17) 26. Qxf5 Rxf5 $17) 24... Qd6 {[%emt 0:01:10]} 25. Rxb7 {[%emt 0:02:42]} g6 $1 {[%emt 0:00:07]} 26. Bh3 {[%emt 0:00:05]} Qc6 {[%emt 0:02:50] Wards off c4} 27. Rbb1 {[%emt 0:02:32]} a3 {[%emt 0:00:16]} 28. f4 {[%emt 0:00:48][%cal Bf3f4,Bf4f5,Bf5f6][%mdl 32] And now Bg2 would win.} Rab8 {[%emt 0:01:47]} 29. Re1 {[%emt 0:00:07]} Rfe8 {[%emt 0:00:08]} 30. Bg2 {[%emt 0:03:39]} Qd7 {[%emt 0:00:06] [#]} 31. f5 $1 {[%emt 0:01:41]} g5 {[%emt 0:01:52]} 32. Qf3 {[%emt 0:03:46] aiming for f6.} Rb2 $2 {[%emt 0:01:41][%mdl 8192]} (32... Bf6 $16 33. Rxe8+ Qxe8) 33. f6 {[%emt 0:00:43] Weighted Error Value: White=0.16 (very precise) /Black=0.20 (precise) .  Loses game:     	---       	Black=1      Missed win:     	White=1     	---        Mistake:       	White=1     	Black=2      Inaccurate:     	White=1     	Black=3      OK:         	White=10    	Black=5      Best:        	White=1     	Black=4      Strong:       	White=1     	Black=1} 1-0

[Event "40th Cappelle Open 2024"]
[Site "Cappelle-la-Grande"]
[Date "2024.03.02"]
[Round "1.2"]
[White "Albaric, Etienne"]
[Black "Idani, Pouya"]
[Result "0-1"]
[ECO "A21"]
[WhiteElo "2116"]
[BlackElo "2609"]
[Annotator "TA"]
[PlyCount "58"]
[EventDate "2024.03.02"]
[EventType "swiss"]
[EventCountry "FRA"]
[SourceTitle "playchess.com"]
[Source "ChessBase"]
[SourceQuality "1"]
[TimeControl "40/5400+30:1800+30"]

{[%evp 14,58,20,-14,13,-6,-8,-17,10,1,-6,-22,-9,0,0,-6,-13,-54,-40,-76,-78,-139,-136,-125,-112,-145,-138,-128,-107,-112,-118,-154,-143,-248,-252,-220,-225,-253,-231,-221,-221,-216,-161,-564,-549,-29994,-29995]} 1. c4 {[%emt 0:02:09]} e5 {[%emt 0:01:24]} 2. Nc3 {[%emt 0:00:09]} d6 {[%emt 0:00:12]} 3. g3 {[%emt 0:03:14]} Be7 {[%emt 0:00:14]} 4. Bg2 {[%emt 0:00:49]} f5 {[%emt 0:00:06]} 5. d3 {[%emt 0:01:15]} Nf6 {[%emt 0:00:23]} 6. Nf3 {[%emt 0:01:14]} O-O {[%emt 0:00:09]} 7. O-O {[%emt 0:04:45]} Qe8 {[%emt 0:00:12]} 8. c5 {[%emt 0:15:56]} Nc6 {[%emt 0:02:27] [#]} 9. b4 $1 {[%emt 0:04:04][%cal Bb2b4,Bb4b5][%mdl 32]} Kh8 {[%emt 0:12:01]} (9... a6 10. b5) 10. Rb1 {[%emt 0:05:17]} Be6 {[%emt 0:14:02] The position is equal.} 11. b5 {[%emt 0:06:21]} Nd8 {[%emt 0:00:12]} 12. Qa4 {[%emt 0:10:15]} Nd5 {[%emt 0:06:30]} 13. Bd2 {[%emt 0:07:44]} a6 {[%emt 0:05:56]} 14. cxd6 {[%emt 0:13:57]} cxd6 {[%emt 0:04:08]} 15. Rfc1 {[%emt 0:01:51]} Nxc3 $1 {[%emt 0:01:15]} 16. Rxc3 {[%emt 0:02:47]} Bd7 {[%emt 0:01:01]} 17. Rc7 {[%emt 0:03:22] [#]} (17. Ne1 $142) 17... Ne6 $1 $17 {[%emt 0:00:45]} 18. Rcc1 {[%emt 0:01:40]} (18. Rxb7 $2 Nc5 (18... axb5 19. Qc2 $15) 19. Qc4 Nxb7 $19) 18... Bxb5 {[%emt 0:10:25]} 19. Qa5 {[%emt 0:00:25]} e4 {[%emt 0:01:07]} 20. Ne1 {[%emt 0:05:06]} (20. dxe4 fxe4 21. Ne1 Bd8 (21... Bxe2 22. Bxe4 Nc5 23. Bxb7 $15)) 20... Nd4 {[%emt 0:00:19]} 21. Bf1 {[%emt 0:02:46]} Qh5 {[%emt 0:09:50]} 22. a4 {[%emt 0:00:59]} Bc6 {[%emt 0:01:02] Black is much more active.} (22... Nxe2+ $2 {loses.} 23. Bxe2 Qxe2 24. axb5 $18) 23. dxe4 {[%emt 0:03:53]} (23. Nc2 $17 Nxc2 (23... Nxe2+ 24. Bxe2 Qxe2 25. Nd4 $17) 24. Rxc2) 23... Nxe2+ $19 {[%emt 0:02:12]} 24. Bxe2 {[%emt 0:00:05]} Qxe2 {[%emt 0:00:07]} 25. exf5 {[%emt 0:00:57]} Bd8 {[%emt 0:01:25]} 26. Qb4 {[%emt 0:00:42]} Rxf5 $40 {[%emt 0:00:54][%mdl 128] Black goes for the king.} 27. Be3 {[%emt 0:00:18][%cal Oc1c6] Strongly threatening Rxc6! White is weak on the light squares} Bg5 {[%emt 0:08:27] This pair of bishops is nice.} 28. Qd4 {[%emt 0:01:13]} (28. Rxc6 {is a better chance.} Bxe3 (28... bxc6 29. Rb2 $14) 29. Rc2 Bxf2+ 30. Kg2 Bxe1+ 31. Rxe2 Bxb4 32. Rxb4) 28... Raf8 {[%emt 0:04:21]} 29. Bxg5 {[%emt 0:01:13] Black must now prevent Be3.} Rxf2 {[%emt 0:00:25] Weighted Error Value: White=0.63/Black=0.08 (flawless) .  Mistake:       	White=3     	---        Inaccurate:     	White=4     	Black=1      OK:         	White=7     	Black=6      Best:        	---       	Black=3      Strong:       	---       	Black=2} 0-1

[Event "40th Cappelle Open 2024"]
[Site "Cappelle-la-Grande"]
[Date "2024.03.02"]
[Round "1.3"]
[White "Sasikiran, Krishnan"]
[Black "Marchyllie, Bruno"]
[Result "1-0"]
[ECO "C87"]
[WhiteElo "2578"]
[BlackElo "2115"]
[Annotator "TA"]
[PlyCount "111"]
[EventDate "2024.03.02"]
[EventType "swiss"]
[EventCountry "FRA"]
[SourceTitle "playchess.com"]
[Source "ChessBase"]
[SourceQuality "1"]
[TimeControl "40/5400+30:1800+30"]

{[%evp 20,111,56,37,69,57,60,58,71,69,70,67,66,70,79,58,87,70,89,79,111,105,117,48,45,50,45,42,83,86,106,80,77,40,37,34,41,39,41,7,55,56,78,75,72,77,104,61,170,161,191,122,91,91,95,87,97,82,87,108,143,146,135,133,152,152,214,195,217,196,323,326,305,265,291,289,424,425,435,431,600,609,539,543,1463,1177,2141,2223,29975,29976,29981,29982,29986,29987]} 1. e4 {[%emt 0:00:05]} e5 {[%emt 0:01:16]} 2. Nf3 {[%emt 0:00:13]} Nc6 {[%emt 0:00:18]} 3. Bb5 {[%emt 0:00:10]} a6 {[%emt 0:00:33]} 4. Ba4 {[%emt 0:00:09]} d6 {[%emt 0:00:47]} 5. O-O {[%emt 0:00:34]} Bd7 {[%emt 0:04:04]} 6. c3 {[%emt 0:00:31]} Be7 {[%emt 0:03:35]} 7. d4 {[%emt 0:01:46]} Nf6 {[%emt 0:01:29]} 8. Re1 {[%emt 0:02:43]} O-O {[%emt 0:01:26]} 9. h3 {[%emt 0:03:28]} Re8 {[%emt 0:06:25]} 10. Bc2 {[%emt 0:04:00]} Bf8 {[%emt 0:04:02]} 11. Nbd2 {[%emt 0:01:48][%cal Bb1d2,Bd2f1,Bf1g3][%mdl 32]} g6 {[%emt 0:03:49]} 12. Nf1 {[%emt 0:04:11]} Bg7 {[%emt 0:02:12]} 13. Ng3 {[%emt 0:04:10]} h6 {[%emt 0:07:33] White is slightly better.} 14. Be3 {[%emt 0:07:19]} Qe7 {[%emt 0:05:40]} 15. Qd2 {[%emt 0:03:07]} Qf8 {[%emt 0:00:36]} 16. Rad1 {[%emt 0:02:35]} Rad8 {[%emt 0:00:10]} 17. Qc1 {[%emt 0:01:58]} Bc8 {[%emt 0:10:09]} 18. a3 {[%emt 0:09:50]} Nd7 {[%emt 0:11:14]} 19. b4 {[%emt 0:07:40]} Ne7 {[%emt 0:02:22]} 20. Bb3 {[%emt 0:15:05]} Kh7 {[%emt 0:02:11]} 21. dxe5 {[%emt 0:04:04]} (21. Qb1 $16) 21... Nxe5 $14 {[%emt 0:00:55]} 22. Nxe5 {[%emt 0:03:07]} dxe5 {[%emt 0:01:08]} 23. Qc2 {[%emt 0:01:52]} f5 {[%emt 0:04:40]} 24. exf5 {[%emt 0:02:02] White is much more active.} Bxf5 {[%emt 0:00:27]} 25. Nxf5 {[%emt 0:05:29]} Nxf5 {[%emt 0:00:20]} 26. Bc5 {[%emt 0:01:38] This pair of bishops is nice.} Qf6 {[%emt 0:00:28]} 27. Qe4 {[%emt 0:02:48]} b6 {[%emt 0:01:42] Hoping for ...Rxd1.} 28. Be3 $36 {[%emt 0:01:10][%mdl 2048] Black is under pressure.} Nxe3 {[%emt 0:01:43]} 29. Qxe3 {[%emt 0:02:07]} Rxd1 {[%emt 0:03:12]} (29... e4 $11) 30. Rxd1 {[%emt 0:00:30]} Rd8 {[%emt 0:00:24] Black is weak on the light squares} 31. Rxd8 {[%emt 0:02:59]} Qxd8 $16 {[%emt 0:00:02][%mdl 4096] Endgame. KQB-KQB} 32. Bc2 {[%emt 0:00:44]} Qh4 {[%emt 0:07:16][%cal Oe5e4]} 33. Qe2 {[%emt 0:01:22][%cal Oc2e4]} Qg5 {[%emt 0:02:02]} (33... e4 $14) 34. g3 {[%emt 0:00:49]} (34. Qxa6 $2 Qc1+ 35. Qf1 Qxc2 $19) 34... e4 {[%emt 0:01:25]} 35. Qxe4 {[%emt 0:01:12]} ({White should play} 35. h4 $18 Qe5 36. Bxe4 (36. Qxa6 e3 $14)) 35... Bxc3 {[%emt 0:01:10]} 36. h4 {[%emt 0:00:42][%cal Bh3h4,Bh4h5,Bh5g6][%mdl 32]} Qf6 {[%emt 0:00:41]} 37. h5 {[%emt 0:00:53][%cal Oe4e8] aiming for Qe8!} Kg7 {[%emt 0:02:23]} 38. hxg6 {[%emt 0:00:58] Black must now prevent Qe8.} (38. Qxg6+ Qxg6 39. Bxg6 b5 $14) 38... Bd4 {[%emt 0:00:38]} 39. Qe2 {[%emt 0:00:46]} Qe5 {[%emt 0:02:42] [#]} 40. Qf3 {[%emt 0:00:13]} (40. Qxa6 {leads to mate.} Qxg3+ 41. Kh1 Qxf2 (41... Bxf2 42. Qf1 $15) (41... Bxf2 42. Qf1 $11)) 40... Qf6 {[%emt 0:00:37] [#]} 41. Bf5 $1 {[%emt 0:32:11]} Qe5 {[%emt 0:36:32] Wards off Qd5} 42. Kg2 {[%emt 0:01:50]} Qd6 {[%emt 0:00:00]} (42... b5 $16 43. Qg4 Qf6) 43. Bd3 {[%emt 0:00:00]} Bf6 {[%emt 0:00:00]} 44. Bxa6 {[%emt 0:00:00]} Qe7 {[%emt 0:00:00]} (44... Kxg6 $142 45. Bd3+ Kf7) 45. Bd3 $18 {[%emt 0:00:00]} Qd6 {[%emt 0:00:00]} 46. Be4 {[%emt 0:00:00]} Qe7 {[%emt 0:00:00]} 47. Qd3 {[%emt 0:00:00]} Qe5 {[%emt 0:00:00]} (47... h5 $142 48. Qd5 Kh6) 48. Qc4 {[%emt 0:00:00]} Qe7 {[%emt 0:00:00] Prevents Qf7+} 49. Bf5 {[%emt 0:00:00]} Be5 {[%emt 0:00:00]} 50. a4 {[%emt 0:00:00]} Qf6 {[%emt 0:02:30]} 51. Be4 {[%emt 0:00:00]} h5 {[%emt 0:00:42]} 52. a5 {[%emt 0:00:00]} bxa5 {[%emt 0:03:00]} 53. bxa5 {[%emt 0:06:12][%cal Bb4a5,Ba5a6][%mdl 32]} h4 {[%emt 0:00:00]} 54. a6 {[%emt 0:00:00] White mates.} hxg3 {[%emt 0:00:00]} 55. fxg3 {[%emt 0:00:00]} Bxg3 {[%emt 0:00:31]} 56. Qf7+ {[%emt 0:00:00] Weighted Error Value: White=0.10 (very precise) /Black=0.42.  Mistake:       	White=2     	Black=5      Inaccurate:     	White=3     	Black=7      OK:         	White=16    	Black=12     Best:        	White=2     	Black=1      Strong:       	White=1     	---} 1-0

[Event "40th Cappelle Open 2024"]
[Site "Cappelle-la-Grande"]
[Date "2024.03.02"]
[Round "1.4"]
[White "Iolis, Oleg"]
[Black "Gopal G.N."]
[Result "1/2-1/2"]
[ECO "B90"]
[WhiteElo "2113"]
[BlackElo "2575"]
[Annotator "TA"]
[PlyCount "84"]
[EventDate "2024.03.02"]
[EventType "swiss"]
[EventCountry "FRA"]
[SourceTitle "playchess.com"]
[Source "ChessBase"]
[SourceQuality "1"]
[TimeControl "40/5400+30:1800+30"]

{[%evp 21,84,0,22,0,15,11,0,0,11,0,0,0,0,0,0,0,8,0,0,0,0,-37,-53,-93,-91,-173,-158,-229,0,-451,52,52,39,51,47,45,64,44,75,45,105,77,81,97,88,0,104,106,155,155,142,167,152,169,162,114,114,104,120,120,126,120,128,116,124]} 1. e4 {[%emt 0:00:01]} c5 {[%emt 0:00:05]} 2. Nf3 {[%emt 0:00:06]} d6 {[%emt 0:00:04]} 3. d4 {[%emt 0:00:05]} cxd4 {[%emt 0:00:05]} 4. Nxd4 {[%emt 0:00:03]} Nf6 {[%emt 0:00:03]} 5. Nc3 {[%emt 0:00:05]} a6 {[%emt 0:00:04]} 6. Be3 {[%emt 0:00:15]} e5 {[%emt 0:00:20]} 7. Nb3 {[%emt 0:00:04]} Be7 {[%emt 0:05:05]} 8. f3 {[%emt 0:00:09]} Be6 {[%emt 0:00:07]} 9. Qd2 {[%emt 0:00:04]} h5 {[%emt 0:00:15]} 10. O-O-O {[%emt 0:00:05]} Nbd7 {[%emt 0:00:18]} 11. Kb1 {[%emt 0:00:05]} Rc8 {[%emt 0:05:03]} 12. Bd3 {[%emt 0:00:12]} b5 {[%emt 0:02:17]} 13. h3 {[%emt 0:00:14]} h4 {[%emt 0:01:45]} 14. f4 {[%emt 0:00:04] The position is equal.} Qc7 {[%emt 0:02:44]} 15. Rhe1 {[%emt 0:00:39]} O-O {[%emt 0:05:34]} 16. g4 {[%emt 0:00:22]} hxg3 {[%emt 0:05:48]} 17. f5 {[%emt 0:04:34]} Bc4 {[%emt 0:01:07]} 18. Rg1 {[%emt 0:00:19]} Nh5 {[%emt 0:02:09]} 19. Bxc4 {[%emt 0:09:18]} bxc4 {[%emt 0:02:11]} 20. Nd5 {[%emt 0:02:13][%csl LRc7,LRe7]} Qd8 {[%emt 0:00:24]} 21. Na5 {[%emt 0:00:33] Nb7 is the strong threat.} Ndf6 {[%emt 0:19:57]} 22. Qe2 {[%emt 0:42:45]} Nxd5 {[%emt 0:17:24]} (22... Nxe4 23. Qxh5 Ng5 24. f6 (24. Rxg3 Qe8 $18) (24. Nxe7+ Qxe7 25. Qxg5 f6 $18) 24... Bxf6 25. Nb7 $18) 23. Rxd5 {[%emt 0:00:16]} (23. exd5 $17 {is the only way for White.} Nf4 24. Bxf4 exf4 (24... Qxa5 25. Bh6 $11) 25. Nc6 (25. Nxc4 $2 Re8 $19) 25... Rxc6 26. dxc6) 23... Nf4 $1 $19 {[%emt 0:04:12]} (23... Nf6 24. Rxg3 (24. Nb7 Qc7 $17) 24... Nxd5 25. exd5 $15) 24. Qg4 {[%emt 0:01:25] [#]} (24. Qf3 $17 c3 (24... Nxd5 25. exd5 Bh4 26. Qg4 $19) 25. Qxg3 (25. Bxf4 $2 Qb6 $19)) 24... Nxd5 $2 {[%emt 0:13:04]} ({Better is} 24... Bf6 $1 $19 25. Qxg3 (25. Bxf4 $2 exf4 26. Rgd1 Qb6 $19) 25... Qc7 (25... Nxd5 26. exd5 Qd7 27. Nc6 $11)) 25. Nb7 $2 {[%emt 0:08:46][%mdl 8192]} (25. exd5 $11 {and White has nothing to worry.} Qxa5 26. Bh6) 25... Nxe3 $2 {[%emt 0:06:02]} (25... Qd7 $19 26. Bh6 g6 (26... Qxb7 27. Qxg7#) 27. exd5 Qxf5 (27... Qxb7 $2 28. Rxg3 Rb8 29. b3 $19) 28. Qxg3 Rfe8) 26. Qxg3 $14 {[%emt 0:00:23][%csl Gg1][%cal Rg3g7]} Nxf5 {[%emt 0:00:06]} 27. exf5 $40 {[%emt 0:00:04][%mdl 128] White has some attack.} Bf6 {[%emt 0:00:04]} 28. Nxd8 {[%emt 0:00:13]} Rfxd8 {[%emt 0:00:06]} 29. h4 $1 {[%emt 0:01:19]} Kf8 {[%emt 0:02:23][%cal Oc4c3]} 30. h5 {[%emt 0:02:37][%mdl 1024] White has strong compensation.} Ke7 {[%emt 0:00:27]} (30... Rc6 $14) 31. Qa3 $16 {[%emt 0:02:42]} Rc6 {[%emt 0:00:13]} 32. Rd1 {[%emt 0:00:49]} Rb8 {[%emt 0:01:44] [#]} 33. Rd5 {[%emt 0:01:17]} (33. Qe3 $1 $16 {[%cal Re3a7] Strongly threatening Qa7+.} Rcb6 34. b3) 33... Rbb6 {[%emt 0:00:40]} (33... e4 $1 $11 {remains equal.} 34. Qe3 Rxb2+ (34... Bxb2 $2 {perishes.} 35. Qa7+ Kf6 36. Qxb8 $18) 35. Kc1 Kf8) 34. Qe3 {[%emt 0:01:31]} Kf8 {[%emt 0:04:06]} (34... Rb7 $142) 35. h6 {[%emt 0:02:12]} gxh6 {[%emt 0:00:04]} 36. Qxh6+ {[%emt 0:00:03]} Ke7 {[%emt 0:00:01]} 37. Qe3 {[%emt 0:00:45] Prevents e4. White is more active.} Rb7 {[%emt 0:00:52]} 38. Qe4 {[%emt 0:00:36]} ({White should try} 38. Ra5 $18) 38... Rcb6 {[%emt 0:01:40] White is better.} 39. b3 {[%emt 0:00:24]} Rc7 {[%emt 0:00:21]} 40. Kb2 {[%emt 0:03:22]} Rc8 {[%emt 0:00:50]} 41. Ka3 {[%emt 0:30:25]} cxb3 {[%emt 0:05:03]} 42. cxb3 {[%emt 0:00:00]} ({But not} 42. axb3 Rc3 $14) 42... Rcc6 {[%emt 0:04:01] Quite a comeback for White.   Weighted Error Value: White=0.31/Black=0.37.  Loses game:     	White=1     	---        Missed win:     	---       	Black=2      Mistake:       	White=4     	Black=3      Inaccurate:     	White=3     	Black=1      OK:         	White=10    	Black=12     Best:        	White=2     	Black=4      Strong:       	White=1     	Black=1} 1/2-1/2

[Event "40th Cappelle Open 2024"]
[Site "Cappelle-la-Grande"]
[Date "2024.03.02"]
[Round "1.5"]
[White "Lodici, Lorenzo"]
[Black "Daels, Marc"]
[Result "1-0"]
[ECO "B31"]
[WhiteElo "2558"]
[BlackElo "2107"]
[Annotator "TA"]
[PlyCount "119"]
[EventDate "2024.03.02"]
[EventType "swiss"]
[EventCountry "FRA"]
[SourceTitle "playchess.com"]
[Source "ChessBase"]
[SourceQuality "1"]
[TimeControl "40/5400+30:1800+30"]

{[%evp 19,119,11,19,1,0,0,0,0,0,3,7,0,0,0,0,0,0,0,0,0,0,0,0,0,0,0,0,0,0,0,0,0,0,0,0,0,0,0,0,0,33,22,45,45,45,18,52,18,31,12,18,10,18,18,18,18,47,0,18,18,11,11,35,11,35,35,35,35,58,38,35,35,35,35,35,35,154,154,247,35,35,35,35,35,35,35,631,617,568,352,337,334,893,852,1547,1438,1363,1272,1685,1389,1635,1627]} 1. e4 {[%emt 0:00:10]} c5 {[%emt 0:00:01]} 2. Nf3 {[%emt 0:00:07]} Nc6 {[%emt 0:00:02]} 3. Bb5 {[%emt 0:01:17]} Nf6 {[%emt 0:00:03][%cal Bg8f6,Bf6e8,Be8c7,Bc7e6,Be6d4][%mdl 32]} 4. Nc3 {[%emt 0:00:18]} g6 {[%emt 0:00:01]} 5. O-O {[%emt 0:00:30]} Bg7 {[%emt 0:00:39]} 6. d3 {[%emt 0:00:50]} O-O {[%emt 0:01:37]} 7. e5 {[%emt 0:01:37]} Ne8 {[%emt 0:03:41]} 8. Bxc6 {[%emt 0:06:39]} dxc6 {[%emt 0:00:22]} 9. Be3 {[%emt 0:01:25]} b6 {[%emt 0:03:47]} 10. h3 {[%emt 0:04:01]} Nc7 {[%emt 0:05:15]} 11. Qd2 {[%emt 0:03:02]} Ne6 {[%emt 0:05:55]} 12. Bh6 {[%emt 0:09:01]} Nd4 {[%emt 0:02:36]} 13. Nxd4 {[%emt 0:00:47] The position is equal.} cxd4 {[%emt 0:00:40]} 14. Bxg7 {[%emt 0:01:34]} Kxg7 {[%emt 0:01:09]} (14... dxc3 15. Qh6 cxb2 16. Rae1 $14 (16. Bxf8 Qxf8 17. Qxf8+ Kxf8 $16)) 15. Ne4 {[%emt 0:00:04]} Be6 {[%emt 0:12:29]} 16. Rae1 {[%emt 0:13:41]} Qd7 {[%emt 0:05:26]} 17. h4 {[%emt 0:07:24]} h6 {[%emt 0:18:58]} 18. h5 {[%emt 0:07:26]} c5 {[%emt 0:03:24]} 19. f4 {[%emt 0:07:52]} a5 {[%emt 0:03:37]} 20. Ng3 {[%emt 0:03:42]} Rac8 {[%emt 0:07:26]} 21. Rf2 {[%emt 0:01:49]} Rc6 {[%emt 0:06:44]} 22. a4 {[%emt 0:02:07]} Bf5 {[%emt 0:02:57]} 23. Qe2 {[%emt 0:01:41]} Kh7 {[%emt 0:01:42]} 24. Kh2 {[%emt 0:00:38]} Rg8 {[%emt 0:01:23]} 25. Rh1 {[%emt 0:01:31]} Bg4 {[%emt 0:06:21]} 26. Qe4 {[%emt 0:01:03]} Bf5 {[%emt 0:00:11]} 27. Qe2 {[%emt 0:02:20]} Bg4 {[%emt 0:00:02]} 28. hxg6+ {[%emt 0:00:22]} fxg6 {[%emt 0:00:07]} 29. Qd2 {[%emt 0:00:06]} Bf5 {[%emt 0:01:14]} 30. b3 {[%emt 0:00:19]} Rf8 {[%emt 0:01:03]} 31. Kg1 {[%emt 0:00:45]} Kg7 {[%emt 0:02:24]} 32. Qe1 {[%emt 0:01:28]} Qd5 {[%emt 0:02:45]} 33. Nf1 {[%emt 0:00:42][%cal Bg3f1,Bf1d2,Bd2f3,Bf3g5][%mdl 32]} Re6 {[%emt 0:01:14]} 34. Nd2 {[%emt 0:01:17]} h5 {[%emt 0:00:41]} 35. Nf3 {[%emt 0:00:42]} Rc6 {[%emt 0:00:19]} 36. Ng5 {[%emt 0:00:25]} Bg4 {[%emt 0:00:31]} 37. Kh2 {[%emt 0:00:17]} Bf5 {[%emt 0:01:04] [#]} 38. e6 {[%emt 0:07:33]} Bg4 {[%emt 0:00:55]} 39. Qd2 {[%emt 0:00:08]} Rf6 {[%emt 0:00:33]} 40. Re1 {[%emt 0:00:06]} Rf5 {[%emt 0:00:21]} 41. Rff1 {[%emt 0:33:27][%cal Bf2f1,Bf1e1,Be1e5][%mdl 32]} Qd6 {[%emt 0:06:43]} 42. Kg1 {[%emt 0:00:00]} Qb8 {[%emt 0:04:57]} 43. Re4 {[%emt 0:00:00]} Rd5 {[%emt 0:02:38]} 44. Rfe1 {[%emt 0:00:00]} Bf5 {[%emt 0:00:27]} 45. Re5 {[%emt 0:00:00]} Rxe5 {[%emt 0:00:52]} 46. Rxe5 {[%emt 0:00:00]} Rd6 {[%emt 0:05:50]} 47. Qe2 {[%emt 0:00:00]} Bg4 {[%emt 0:00:38]} ({Black should play} 47... Qf8 $14) 48. Qe4 $16 {[%emt 0:00:00] aiming for Nf7. White is more active.} Qc8 {[%emt 0:01:21] [#]} (48... Qe8 $16 49. Qb7 (49. Nf7 Rxe6 50. Rxe6 Bxe6 $11) 49... Kf8) 49. Qe1 $2 {[%emt 0:00:00]} (49. Nf7 $1 $18 Rxe6 50. Ng5 Rxe5 51. Qxe5+ Kg8 52. Qd5+ (52. Qxe7 Qd7 $18) 52... e6 53. Qe5) 49... Qc6 {[%emt 0:00:52]} 50. Qh4 {[%emt 0:00:00]} Qe8 {[%emt 0:01:42]} 51. Kf1 {[%emt 0:00:00]} Qc8 {[%emt 0:03:32]} 52. Qg3 {[%emt 0:00:00]} Rxe6 $2 {[%emt 0:04:01][%mdl 8192] A mistake that costs the game.} (52... Qe8 $14) 53. Nxe6+ $18 {[%emt 0:00:00]} Bxe6 {[%emt 0:00:05]} 54. Rxh5 $14 {[%emt 0:00:00][%cal Of4f5][%mdl 4096] Endgame. And now f5! would win. KQR-KQB} Bf5 {[%emt 0:01:32]} 55. Rh1 {[%emt 0:00:00] Threatens to win with Qh4.} Qd7 $2 {[%emt 0:01:13]} (55... Qe6 56. Qh4 Qe3 57. Qh8+ Kf7) 56. Qh4 $18 {[%emt 0:00:00] White threatens Qh8+ and mate. White is clearly winning.} Kf7 {[%emt 0:01:47]} 57. Qh7+ {[%emt 0:00:00]} Ke6 {[%emt 0:00:37] [#]} 58. g4 $1 {[%emt 0:00:00]} Bxg4 {[%emt 0:00:20]} (58... Qd6 59. gxf5+) 59. Qxg6+ {[%emt 0:00:00]} Kd5 {[%emt 0:00:21]} 60. Rh6 {[%emt 0:20:17] Weighted Error Value: White=0.14 (very precise) /Black=0.26 (precise) .  Loses game:     	---       	Black=1      Missed win:     	White=1     	---        Mistake:       	White=1     	Black=3      Inaccurate:     	White=2     	Black=4      OK:         	White=19    	Black=15     Best:        	White=1     	---} 1-0